[Event "44th Badalona Open 2018"]
[Site "Badalona"]
[Date "2018.08.09"]
[Round "9"]
[White "Oliva Castaneda, Kevel"]
[Black "Gallego Alcaraz, Andres Felipe"]
[Result "1/2-1/2"]
[ECO "A05"]
[WhiteElo "2478"]
[BlackElo "2500"]
[Annotator "ChessBase"]
[PlyCount "35"]
[EventDate "2018.08.01"]
[EventType "swiss"]
[EventCountry "ESP"]
[SourceTitle "playchess.com"]
[Source "ChessBase"]
[SourceQuality "1"]
[TimeControl "5400+30"]

1. Nf3 {[%emt 0:00:00]} Nf6 {[%emt 0:00:00]} 2. c4 {[%emt 0:00:00]} c5 {[%emt 0:00:00]} 3. g3 d5 {[%emt 0:00:05]} 4. cxd5 {[%emt 0:00:03]} Nxd5 {[%emt 0:00:09]} 5. Bg2 {[%emt 0:00:00]} Nc6 6. O-O {[%emt 0:00:06]} e5 {[%emt 0:00:42]} 7. Nc3 {[%emt 0:00:25]} Nc7 {[%emt 0:00:04]} 8. a3 {[%emt 0:01:48]} Be7 {[%emt 0:07:15]} 9. b4 {[%emt 0:05:32]} f6 {[%emt 0:00:15]} 10. bxc5 {[%emt 0:05:12]} Bxc5 {[%emt 0:02:20]} 11. Qb3 {[%emt 0:04:28]} Na5 {[%emt 0:02:30]} 12. Qc2 {[%emt 0:05:32]} O-O {[%emt 0:06:56]} 13. Rb1 Be6 14. Rd1 Rc8 15. d4 exd4 16. Na4 Na6 17. Nxc5 Rxc5 18. Qb2 1/2-1/2

[Event "44th Badalona Open 2018"]
[Site "Badalona"]
[Date "2018.08.09"]
[Round "9"]
[White "Sturt, Raven M"]
[Black "Diaz Camallonga, Carles"]
[Result "1/2-1/2"]
[ECO "E32"]
[WhiteElo "2437"]
[BlackElo "2445"]
[Annotator "NA"]
[PlyCount "119"]
[EventDate "2018.08.01"]
[EventType "swiss"]
[EventCountry "ESP"]
[SourceTitle "playchess.com"]
[Source "ChessBase"]
[SourceQuality "1"]
[TimeControl "5400+30"]

1. d4 e6 {[%emt 0:23:40]} 2. c4 Nf6 {[%emt 0:00:30]} 3. Nc3 Bb4 {[%emt 0:00:30]} 4. Qc2 O-O {[%emt 0:00:30]} 5. e4 d6 {[%emt 0:00:30]} 6. Bd3 e5 {[%emt 0:00:30]} 7. a3 exd4 {[%emt 0:00:30]} 8. axb4 dxc3 {[%emt 0:00:30]} 9. bxc3 Re8 {[%emt 0:00:30]} 10. Ne2 Nc6 {[%emt 0:00:30]} 11. Ng3 {[%emt 0:53:34]} a5 {[%emt 0:00:30]} 12. f4 {[%emt 0:00:30]} Ng4 {[%emt 0:00:30]} 13. Be2 {[%emt 0:00:30]} Qh4 {[%emt 0:00:30]} 14. b5 {[%emt 0:00:30]} Nb8 {[%emt 0:26:05]} 15. Bxg4 {[%emt 0:18:36]} Qxg4 {[%emt 0:09:51]} 16. O-O {[%emt 0:00:27]} Qd7 {[%emt 0:03:25]} 17. Ba3 {[%emt 0:10:14]} f6 {[%emt 0:00:30]} 18. Rad1 {[%emt 0:00:10]} Qe6 {[%emt 0:05:19]} 19. e5 {[%emt 0:09:39]} dxe5 {[%emt 0:00:30]} 20. fxe5 {[%emt 0:00:09]} Nd7 {[%emt 0:00:06]} 21. exf6 {[%emt 0:01:10]} Nxf6 {[%emt 0:00:05]} 22. Qd2 {[%emt 0:00:23]} Qf7 {[%emt 0:04:53]} 23. Qd4 {[%emt 0:01:42]} Qg6 {[%emt 0:04:00]} 24. Qc5 {[%emt 0:00:04]} Bg4 {[%emt 0:01:47]} 25. Rd4 {[%emt 0:00:01]} Rac8 {[%emt 0:00:34]} 26. Rdf4 {[%emt 0:00:37]} h6 {[%emt 0:05:40]} 27. b6 {[%emt 0:00:05]} Nd7 {[%emt 0:01:26]} 28. Qd4 {[%emt 0:00:25]} Be6 {[%emt 0:00:07]} 29. bxc7 {[%emt 0:00:49]} Rxc7 {[%emt 0:03:26]} 30. c5 {[%emt 0:00:16]} Kh7 {[%emt 0:00:30]} 31. Ne4 {[%emt 0:00:13]} Nb8 {[%emt 0:01:20]} 32. Nd6 {[%emt 0:03:40]} Nc6 {[%emt 0:00:25]} 33. Qf2 {[%emt 0:00:01]} Rd8 34. Rf3 {[%emt 0:00:13]} Re7 {[%emt 0:01:53]} 35. Rg3 {[%emt 0:00:13]} Qh5 {[%emt 0:00:13]} 36. h3 {[%emt 0:00:47]} Ne5 {[%emt 0:01:58]} 37. c4 {[%emt 0:00:57]} Ng6 {[%emt 0:01:05]} 38. Qc2 {[%emt 0:00:18]} Bd7 {[%emt 0:01:17]} 39. Kh2 {[%emt 0:00:58]} Bc6 {[%emt 0:01:26]} 40. Rf2 {[%emt 0:01:13]} Rdd7 {[%emt 0:00:29]} 41. Qc3 {[%emt 0:00:24]} Qe5 {[%emt 0:01:00]} 42. Qc2 {[%emt 0:01:26]} Re6 {[%emt 0:00:00]} 43. Rf5 {[%emt 0:00:30]} Qe2 {[%emt 0:00:10]} 44. Qb1 {[%emt 0:00:07]} Be4 {[%emt 0:00:22]} 45. Nxe4 {[%emt 0:00:15]} Qxe4 {[%emt 0:00:04]} 46. Qxe4 {[%emt 0:01:17]} Rxe4 {[%emt 0:00:04]} 47. c6 {[%emt 0:00:08]} bxc6 {[%emt 0:00:07]} 48. Rxa5 {[%emt 0:00:44]} Rxc4 {[%emt 0:00:05]} 49. Rc5 {[%emt 0:00:28]} Rxc5 {[%emt 0:00:21]} 50. Bxc5 {[%emt 0:00:00]} Nf4 {[%emt 0:01:55]} 51. Rg4 {[%emt 0:00:18]} Ne6 52. Be3 {[%emt 0:00:00]} Kg8 {[%emt 0:01:03]} 53. Bxh6 {[%emt 0:00:19]} Rd4 {[%emt 0:01:52]} 54. Rg3 {[%emt 0:00:26]} Kf7 {[%emt 0:00:00]} 55. Bc1 {[%emt 0:00:00]} c5 {[%emt 0:00:04]} 56. Rf3+ {[%emt 0:00:14]} Kg6 {[%emt 0:00:30]} 57. Bb2 {[%emt 0:01:05]} Re4 {[%emt 0:00:00]} 58. Rg3+ {[%emt 0:00:30]} Kf7 {[%emt 0:00:15]} 59. Rf3+ {[%emt 0:00:00]} Kg6 {[%emt 0:02:05]} 60. Rg3+ {[%emt 0:00:17]} 1/2-1/2

[Event "44th Badalona Open 2018"]
[Site "Badalona"]
[Date "2018.08.09"]
[Round "9"]
[White "Ootes, Lars"]
[Black "Gorti, Akshita"]
[Result "1/2-1/2"]
[ECO "A13"]
[WhiteElo "2378"]
[BlackElo "2327"]
[Annotator "NA"]
[PlyCount "56"]
[EventDate "2018.08.01"]
[EventType "swiss"]
[EventCountry "ESP"]
[SourceTitle "playchess.com"]
[Source "ChessBase"]
[SourceQuality "1"]
[TimeControl "5400+30"]

1. c4 e6 {[%emt 0:00:00]} 2. Nc3 {[%emt 0:10:54]} d5 {[%emt 0:00:17]} 3. e3 {[%emt 0:00:00]} Nf6 {[%emt 0:00:30]} 4. Nf3 {[%emt 0:00:13]} Be7 {[%emt 0:00:29]} 5. b3 {[%emt 0:00:30]} O-O {[%emt 0:00:16]} 6. Bb2 {[%emt 0:00:22]} c5 {[%emt 0:00:45]} 7. cxd5 {[%emt 0:00:21]} Nxd5 {[%emt 0:00:13]} 8. a3 {[%emt 0:00:51]} Nc6 9. Qc2 {[%emt 0:02:47]} b6 {[%emt 0:02:48]} 10. h4 {[%emt 0:00:37]} f5 {[%emt 0:00:06]} 11. Nxd5 {[%emt 0:00:30]} exd5 {[%emt 0:00:56]} 12. d4 {[%emt 0:14:32]} Be6 {[%emt 0:02:47]} 13. Rd1 {[%emt 0:03:56]} Rc8 {[%emt 0:01:47]} 14. Ba6 {[%emt 0:08:17]} Rc7 {[%emt 0:09:45]} 15. Qe2 {[%emt 0:03:09]} h6 {[%emt 0:09:30]} 16. h5 {[%emt 0:15:37]} Bf6 {[%emt 0:05:41]} 17. Bb5 {[%emt 0:01:47]} Na5 {[%emt 0:02:29]} 18. dxc5 {[%emt 0:00:30]} bxc5 {[%emt 0:02:24]} 19. b4 {[%emt 0:01:55]} cxb4 {[%emt 0:01:44]} 20. axb4 {[%emt 0:00:44]} Nc4 {[%emt 0:01:07]} 21. Bxc4 {[%emt 0:19:11]} Rxc4 {[%emt 0:04:05]} 22. Qxc4 {[%emt 0:00:30]} dxc4 {[%emt 0:00:48]} 23. Rxd8 {[%emt 0:00:02]} Bxd8 {[%emt 0:00:30]} 24. Bd4 {[%emt 0:02:19]} Be7 {[%emt 0:06:33]} 25. Bc3 {[%emt 0:00:30]} Rb8 {[%emt 0:00:30]} 26. Nd4 {[%emt 0:01:04]} Bf6 {[%emt 0:10:29]} 27. Kd2 {[%emt 0:01:25]} Bxd4 {[%emt 0:00:30]} 28. exd4 Bd5 {[%emt 0:06:59]} 1/2-1/2

[Event "44th Badalona Open 2018"]
[Site "Badalona"]
[Date "2018.08.09"]
[Round "9"]
[White "Harikrishnan, A Ra"]
[Black "Verstraeten, Reinaert"]
[Result "1/2-1/2"]
[ECO "A05"]
[WhiteElo "2301"]
[BlackElo "2303"]
[Annotator "NA"]
[PlyCount "57"]
[EventDate "2018.08.01"]
[EventType "swiss"]
[EventCountry "ESP"]
[SourceTitle "playchess.com"]
[Source "ChessBase"]
[SourceQuality "1"]
[TimeControl "5400+30"]

1. Nf3 {[%emt 0:00:00]} Nf6 {[%emt 0:00:00]} 2. c4 g6 {[%emt 0:00:00]} 3. g3 {[%emt 0:00:00]} Bg7 4. Bg2 {[%emt 0:00:00]} O-O {[%emt 0:00:00]} 5. O-O {[%emt 0:00:00]} d6 {[%emt 0:00:59]} 6. d4 {[%emt 0:00:00]} Nc6 {[%emt 0:00:00]} 7. h3 {[%emt 0:00:00]} a6 {[%emt 0:00:06]} 8. Nc3 {[%emt 0:00:14]} Rb8 {[%emt 0:00:21]} 9. e4 {[%emt 0:00:10]} b5 10. d5 {[%emt 0:00:05]} Na5 {[%emt 0:00:53]} 11. cxb5 {[%emt 0:00:05]} axb5 {[%emt 0:03:36]} 12. b4 {[%emt 0:00:05]} Nc4 {[%emt 0:04:49]} 13. Nd4 {[%emt 0:00:06]} Bd7 14. a4 {[%emt 0:00:01]} bxa4 {[%emt 0:03:05]} 15. b5 {[%emt 0:00:09]} Nb6 {[%emt 0:08:53]} 16. Qd3 {[%emt 0:01:41]} e6 {[%emt 0:12:00]} 17. Be3 {[%emt 0:00:12]} exd5 {[%emt 0:05:51]} 18. exd5 {[%emt 0:07:25]} Re8 {[%emt 0:00:10]} 19. Nc6 {[%emt 0:01:36]} Bxc6 {[%emt 0:02:42]} 20. bxc6 {[%emt 0:02:53]} Nc8 {[%emt 0:01:10]} 21. Rxa4 {[%emt 0:08:16]} Ne7 {[%emt 0:01:18]} 22. g4 {[%emt 0:05:27]} h5 {[%emt 0:01:27]} 23. Bf3 {[%emt 0:00:40]} hxg4 {[%emt 0:06:25]} 24. hxg4 {[%emt 0:22:47]} Nh7 {[%emt 0:16:14]} 25. Ne4 {[%emt 0:20:02]} Nf6 {[%emt 0:00:12]} 26. Nc3 {[%emt 0:04:46]} Nh7 {[%emt 0:05:50]} 27. Ne2 {[%emt 0:04:33]} Be5 {[%emt 0:04:14]} 28. Bg2 {[%emt 0:02:44]} Ra8 29. Rxa8 1/2-1/2

[Event "44th Badalona Open 2018"]
[Site "Badalona"]
[Date "2018.08.09"]
[Round "9"]
[White "Ferre Campos, Josep"]
[Black "Gorti, Atmika"]
[Result "1-0"]
[ECO "B20"]
[WhiteElo "1878"]
[BlackElo "1858"]
[Annotator "NA"]
[PlyCount "53"]
[EventDate "2018.08.01"]
[EventType "swiss"]
[EventCountry "ESP"]
[SourceTitle "playchess.com"]
[Source "ChessBase"]
[SourceQuality "1"]
[TimeControl "5400+30"]

1. e4 {[%emt 0:00:00]} c5 2. d3 {[%emt 0:00:00]} Nc6 {[%emt 0:00:00]} 3. Nd2 {[%emt 0:00:00]} Nf6 {[%emt 0:00:55]} 4. g3 {[%emt 0:00:00]} g6 {[%emt 0:01:27]} 5. Bg2 {[%emt 0:00:00]} Bg7 {[%emt 0:00:37]} 6. Ngf3 {[%emt 0:00:00]} d6 {[%emt 0:01:55]} 7. O-O {[%emt 0:00:00]} O-O {[%emt 0:00:30]} 8. Re1 {[%emt 0:02:06]} Qc7 {[%emt 0:12:53]} 9. c3 {[%emt 0:06:59]} Nd7 {[%emt 0:03:34]} 10. Qc2 {[%emt 0:01:02]} Nce5 {[%emt 0:05:23]} 11. Nxe5 {[%emt 0:02:35]} Nxe5 {[%emt 0:01:24]} 12. f4 {[%emt 0:04:16]} Nc6 {[%emt 0:02:45]} 13. a4 {[%emt 0:01:16]} b6 14. Nc4 {[%emt 0:00:37]} Bb7 {[%emt 0:01:54]} 15. Ne3 {[%emt 0:02:42]} e6 {[%emt 0:06:23]} 16. Rf1 {[%emt 0:06:50]} Rad8 {[%emt 0:03:06]} 17. f5 {[%emt 0:01:24]} exf5 {[%emt 0:09:13]} 18. exf5 {[%emt 0:13:27]} Rfe8 {[%emt 0:04:35]} 19. fxg6 {[%emt 0:00:30]} fxg6 {[%emt 0:02:23]} 20. Nd5 {[%emt 0:12:32]} Qd7 {[%emt 0:02:16]} 21. Bg5 {[%emt 0:04:01]} Rb8 22. Nf6+ {[%emt 0:00:35]} Bxf6 {[%emt 0:00:37]} 23. Bd5+ {[%emt 0:01:45]} Re6 {[%emt 0:06:57]} 24. Rxf6 {[%emt 0:03:34]} Nd8 {[%emt 0:04:40]} 25. Bh6 {[%emt 0:03:01]} Qe7 {[%emt 0:00:53]} 26. Raf1 {[%emt 0:00:29]} Nf7 27. Bxe6 1-0

[Event "44th Badalona Open 2018"]
[Site "Badalona"]
[Date "2018.08.09"]
[Round "9"]
[White "Casares Bonals, Ainhoa"]
[Black "Mut Company, Guillem Joan"]
[Result "1/2-1/2"]
[ECO "B12"]
[WhiteElo "1637"]
[BlackElo "1898"]
[Annotator "NA"]
[PlyCount "43"]
[EventDate "2018.08.01"]
[EventType "swiss"]
[EventCountry "ESP"]
[SourceTitle "playchess.com"]
[Source "ChessBase"]
[SourceQuality "1"]
[TimeControl "5400+30"]

1. e4 {[%emt 0:00:00]} c6 {[%emt 0:00:00]} 2. d4 {[%emt 0:00:00]} d5 {[%emt 0:00:00]} 3. e5 {[%emt 0:00:03]} c5 {[%emt 0:00:00]} 4. dxc5 {[%emt 0:00:56]} e6 {[%emt 0:00:29]} 5. Nf3 {[%emt 0:01:18]} Bxc5 {[%emt 0:01:06]} 6. a3 {[%emt 0:01:02]} Nd7 {[%emt 0:00:39]} 7. b4 {[%emt 0:01:55]} Be7 {[%emt 0:00:13]} 8. Bd3 {[%emt 0:02:05]} a5 {[%emt 0:02:01]} 9. b5 {[%emt 0:02:27]} f6 {[%emt 0:02:27]} 10. exf6 {[%emt 0:03:51]} Bxf6 {[%emt 0:02:56]} 11. Ra2 {[%emt 0:02:10]} e5 {[%emt 0:04:27]} 12. Be2 {[%emt 0:05:21]} Ne7 {[%emt 0:03:25]} 13. O-O {[%emt 0:01:51]} O-O {[%emt 0:02:32]} 14. c4 {[%emt 0:06:51]} d4 {[%emt 0:01:59]} 15. Bd3 {[%emt 0:02:32]} Nc5 {[%emt 0:04:39]} 16. Re1 {[%emt 0:03:53]} Qd6 {[%emt 0:25:07]} 17. Bb2 {[%emt 0:04:13]} Be6 {[%emt 0:04:15]} 18. a4 {[%emt 0:06:38]} Qc7 {[%emt 0:03:46]} 19. Na3 {[%emt 0:04:47]} b6 {[%emt 0:06:09]} 20. Qd2 {[%emt 0:20:28]} Nxa4 21. Bxd4 Nc5 22. Bb2 1/2-1/2